Cogmind - Beta 11.1 @@@ ROGUE MODE // 2022.06.04 @ 12:32:28 Player: Demise Result: Destroyed by L-31 Rogue with Katana Performance ------------- Evolutions (1) 500 Regions Visited (4) 800 Robots Destroyed (101) 505 Value Destroyed (2148) 2148 Prototype IDs (5) 100 Alien Tech Used (0) 0 Bonus (244) 244 TOTAL SCORE: 4297 Bonus ------- High Alert Combat Kills 244 Cogmind --------- Core Integrity 0/400 Matter 245/300 Energy 280/280 System Corruption 5% Temperature Cool (0) Movement Rolling (140) Ox4 Location -9/Mines Parts ------- > --- POWER (1) -------- Heavy Ion Engine > --- PROPULSION (2) --- Wheel Wheel > --- UTILITY (4) ------ Huge Storage Unit Visual Processing Unit > --- WEAPON (2) ------- Improved Assault Rifle Improved Assault Rifle > --- INVENTORY (25) --- Advanced Treads Advanced Treads Advanced Treads Advanced Treads Huge Storage Unit Structural Scanner Sensor Array Signal Interpreter Improved Terrain Scanner Improved Terrain Scan Processor Transport Network Coupler Hacking Suite Tractor Beam Trap Extractor (0/4) Recalibrator Light EM Pulse Cannon Heavy Assault Rifle Mini Grenade Launcher Mini Grenade Launcher Datajack Katana Peak State ------------ > --- POWER ------------ Heavy Ion Engine > --- PROPULSION ------- Wheel Improved VTOL Module > --- UTILITY ---------- Improved Heat Sink High-capacity Storage Unit Visual Processing Unit Targeting Computer > --- WEAPON ----------- Heavy Assault Rifle Heavy Assault Rifle > --- INVENTORY -------- Wheel Wheel Wheel Sensor Array Signal Interpreter Improved Terrain Scanner Improved Terrain Scan Processor Seismic Detector Hacking Suite Tractor Beam Trap Extractor Light EM Pulse Cannon Heavy Assault Rifle Heavy Assault Rifle Improved Assault Rifle Improved Assault Rifle Improved Assault Rifle Mini Grenade Launcher Mini Grenade Launcher Datajack [Rating: 22] Favorites ----------- Power Heavy Ion Engine Engine Heavy Ion Engine Propulsion Wheel Treads Advanced Treads Wheel Wheel Flight Unit Improved VTOL Module Utility High-capacity Storage Unit Device Seismic Detector Storage High-capacity Storage Unit Processor Visual Processing Unit Protection Utility Shielding Weapon Heavy Assault Rifle Energy Gun Improved EM Shotgun Ballistic Gun Heavy Assault Rifle Launcher Grenade Launcher Slashing Weapon Katana Build | -11 -10 -10 -9 -9 ------- Run | Scr Mat Min Mat Min Slots Evolved 2 | . . . 2 . Power . | . . . . . Propulsion . | . . . . . Utility 2 | . . . 2 . Weapon . | . . . . . Parts Attached 112 | 8 23 12 61 8 Power 7 | 1 3 . 2 1 Engine 7 | 1 3 . 2 1 Core . | . . . . . Reactor . | . . . . . Propulsion 32 | 2 6 5 17 2 Treads 1 | . . . 1 . Leg . | . . . . . Wheel 28 | 2 6 5 13 2 Hover . | . . . . . Flight 3 | . . . 3 . Utility 35 | 3 7 4 19 2 Device 16 | 2 4 2 7 1 Storage 5 | 1 2 . 2 . Processor 3 | . . . 3 . Hackware . | . . . . . Protection 11 | . 1 2 7 1 Artifact . | . . . . . Weapon 38 | 2 7 3 23 3 Energy Gun 2 | . 1 . 1 . Energy Cannon . | . . . . . Ballistic Gun 28 | 2 6 2 16 2 Ballistic Cannon . | . . . . . Launcher 6 | . . 1 5 . Special Weapon . | . . . . . Impact Weapon . | . . . . . Slashing Weapon 2 | . . . 1 1 Piercing Weapon . | . . . . . Special Melee Weapon . | . . . . . Unidentified Prototypes 5 | . 1 . 4 . Parts Lost 18 | . 1 . 11 6 Power 1 | . . . . 1 Propulsion 6 | . . . 4 2 Utility 6 | . . . 4 2 Weapon 5 | . 1 . 3 1 Highest Loss Streak 4 | . 1 . 4 3 To Critical Strikes . | . . . . . Average Slot Usage (%) 96 | . 98 100 97 87 Engine 11 | . 14 14 10 10 Wheel 22 | . 27 28 20 17 Device 7 | . 7 11 5 9 Storage 12 | . 14 14 11 11 Processor 11 | . . . 18 11 Protection 6 | . 6 3 7 5 Ballistic Gun 22 | . 27 26 21 19 Naked Turns . | . . . . . Heaviest Build 97 | 11 53 55 97 96 Greatest Support 26 | 20 20 26 22 20 Greatest Overweight (x) 18 | 2 2 2 18 9 Average Overweight (x) 2 | . . 2 2 5 Largest Inventory Capacity 25 | 8 20 20 25 25 Average Capacity 19 | 7 13 20 21 25 Most Carried 25 | 8 20 20 25 24 Average Carried 18 | 3 11 20 21 22 Final Capacity 25 | 8 20 20 25 25 Final Carried 24 | 7 20 20 24 21 Class Distribution -------------------- 64% | Mutant 35% | Scavenger-Mutant Dominant Class ---------------- Mutant | -10/Materials Mutant | -10/Mines Scavenger-Mutant | -9/Materials Mutant | -9/Mines Resources | -11 -10 -10 -9 -9 ----------- Run | Scr Mat Min Mat Min Matter Collected 2651 | 325 381 407 1355 183 Remotely 233 | 233 . . . . Salvage Created 3283 | 234 662 112 1881 394 Parts 229 | 20 37 13 137 22 Haulers Intercepted 5 | . 1 . 4 . Recyclers Shooed . | . . . . . Parts Field Recycled . | . . . . . Retrieved Matter . | . . . . . Parts Self-Destructed . | . . . . . Prevented . | . . . . . Kills | -11 -10 -10 -9 -9 ------- Run | Scr Mat Min Mat Min Combat Hostiles Destroyed 70 | . 17 8 35 10 Melee 3 | . . . . 3 Guns 59 | . 17 7 28 7 AOE 8 | . . 1 7 . Classes Destroyed 14 | 3 5 1 4 1 Worker 8 | 2 . . 5 1 Builder 3 | . . . 3 . Tunneler 8 | 5 . 1 1 1 Hauler 5 | . 1 . 4 . Recycler 2 | 1 . . 1 . Mechanic 2 | . . . 2 . Operator 2 | . 1 . 1 . Watcher 6 | . 1 . 5 . Swarmer 20 | . 6 6 8 . Grunt 34 | . 11 . 17 6 Brawler 1 | . . . . 1 Duelist 1 | . . . 1 . Sentry 9 | . . . 9 . Assembled 5 | . . 2 . 3 Best Kill Streak 8 | 5 5 3 8 3 Combat Bots Only 6 | . 5 3 6 3 Max Kills in Single Turn 3 | 1 1 1 3 1 Gunslinging . | . . . . . Exploded 2 | . . 1 2 . Melee 1 | . . . . 1 Uniques/NPCs Destroyed . | . . . . . Combat | -11 -10 -10 -9 -9 -------- Run | Scr Mat Min Mat Min Damage Taken 3119 | . 645 247 1567 660 Core 601 | . 153 30 294 124 Absorbed by Shields . | . . . . . Redirected to Shielding 80 | . 8 . 58 14 Regen/Repaired (Parts) 272 | . 98 . 174 . Core Remaining (%) 63 | 100 . 26 . . Volleys Fired 297 | 23 83 31 136 24 Largest 2 | 2 2 2 2 2 Hottest 53 | 40 40 40 53 46 Shots Fired 562 | 46 165 50 253 48 Gun 554 | 46 165 49 246 48 Cannon . | . . . . . Launcher 8 | . . 1 7 . Special . | . . . . . Kinetic 554 | 46 165 49 246 48 Thermal . | . . . . . Explosive 8 | . . 1 7 . Electromagnetic . | . . . . . Robot Hit Streak 16 | 7 14 9 16 14 Robot Miss Streak 8 | 3 8 3 5 3 Penetration Max . | . . . . . Secondary Targets 5 | . 2 1 2 . Max Gunslinging Chain 1 | . 1 1 1 . Shots Hit Robots 362 | 30 96 26 169 41 Core Hits 154 | 14 36 13 78 13 Critical Kills 2 | 1 . . . 1 Critical Parts Destroyed 4 | . . . 4 . Critical Strikes 6 | 1 . . 4 1 Destroy 6 | 1 . . 4 1 Melee Attacks 26 | . . . 3 23 Impact . | . . . . . Slashing 26 | . . . 3 23 Piercing . | . . . . . Sneak Attacks 1 | . . . 1 . Combat Hostiles . | . . . . . Follow-up Attacks . | . . . . . Damage Inflicted 5642 | 236 1048 332 3256 770 Guns 4709 | 236 1048 296 2591 538 Cannons . | . . . . . Explosions 592 | . . 36 556 . Melee 341 | . . . 109 232 Ramming . | . . . . . Kinetic 4709 | 236 1048 296 2591 538 Thermal . | . . . . . Explosive 592 | . . 36 556 . Electromagnetic . | . . . . . Impact . | . . . . . Slashing 341 | . . . 109 232 Piercing . | . . . . . Highest Corruption 5 | . . . . 5 Average Corruption 5 | . . . . 5 Corruption Purged . | . . . . . Corruption Blocked . | . . . . . Effects 9 | . . . . 9 Message Errors 2 | . . . . 2 Matter Fused 3 | . . . . 3 Heat Flow Errors 1 | . . . . 1 Energy Discharges 1 | . . . . 1 Misfires 1 | . . . . 1 Alerts 1 | . . . . 1 Overload Shots . | . . . . . Overflow Damage 82 | . . . 16 66 Projectiles . | . . . . . Explosions 4 | . . . 4 . Melee 78 | . . . 12 66 Knockbacks . | . . . . . Impact . | . . . . . Kinetic . | . . . . . Secondary . | . . . . . Self-Inflicted Damage 70 | . . . 70 . Shots 2 | . . . 2 . Rammed . | . . . . . Targets Rammed . | . . . . . Kicked . | . . . . . Crushed . | . . . . . Highest Temperature 254 | . 24 4 39 254 Average Temperature 11 | . 4 1 4 133 Received Heat Transfer 960 | . 246 . 630 84 Siege Activations . | . . . . . Robots Corrupted . | . . . . . Combat Hostiles . | . . . . . Parts Fried . | . . . . . Impact Corruptions . | . . . . . Robots Melted . | . . . . . Combat Hostiles . | . . . . . Parts Melted . | . . . . . Heat Transferred . | . . . . . Parts Sabotaged . | . . . . . Parts Stolen . | . . . . . Parts Stripped . | . . . . . Power Chain Reactions . | . . . . . Missiles Intercepted . | . . . . . Alert | -11 -10 -10 -9 -9 ------- Run | Scr Mat Min Mat Min Peak Influence 805 | 40 479 293 805 418 Initial 313 | . 26 108 47 313 Average 345 | 19 300 177 431 312 Maximum Alert Level 3 | . 2 1 3 2 Low Security (%) 23 | 100 20 60 14 . Level 1 43 | . 48 39 36 84 Level 2 24 | . 31 . 30 15 Level 3 9 | . . . 17 . Level 4 . | . . . . . Level 5 . | . . . . . High Security . | . . . . . Max Security . | . . . . . Squads Dispatched 11 | . 5 . 6 . Investigation 8 | . 4 . 4 . Extermination . | . . . . . Reinforcement 2 | . 1 . 1 . Assault 1 | . . . 1 . Garrison . | . . . . . Intercept . | . . . . . Searches Triggered . | . . . . . Construction Impeded . | . . . . . Haulers Reinforced . | . . . . . Active Scanning Responses . | . . . . . Cargo Convoy Interrupts . | . . . . . Stealth | -11 -10 -10 -9 -9 --------- Run | Scr Mat Min Mat Min Distress Signals 3 | . 1 . 2 . Communications Jammed . | . . . . . Distress Signals . | . . . . . Times Spotted 95 | . 24 10 49 12 Peak Tracking Total 6 | . 6 3 4 4 Tactical Retreats 7 | . . 2 3 2 Traps | -11 -10 -10 -9 -9 ------- Run | Scr Mat Min Mat Min Traps Triggered 4 | . 2 . 2 . Indirectly . | . . . . . Trap Hack Attempts . | . . . . . Triggered . | . . . . . Disarmed . | . . . . . Reprogrammed . | . . . . . Reused . | . . . . . Traps Extracted . | . . . . . Installed . | . . . . . Triggered . | . . . . . Machines | -11 -10 -10 -9 -9 ---------- Run | Scr Mat Min Mat Min Machines Disabled 1 | . . . 1 . Max in Single Turn 1 | . . . 1 . Machines Sabotaged . | . . . . . Garrisons Compromised . | . . . . . Overloaded Fab Kills . | . . . . . Hacking | -11 -10 -10 -9 -9 --------- Run | Scr Mat Min Mat Min Machines Accessed 21 | . 10 . 11 . Terminals 13 | . 7 . 6 . Fabricators . | . . . . . Repair Stations 3 | . 1 . 2 . Recycling Units 3 | . 2 . 1 . Scanalyzers 2 | . . . 2 . Garrison Access . | . . . . . Total Hacks 76 | . 36 . 40 . Successful 44 | . 20 . 24 . Failed 31 | . 15 . 16 . Catastrophic . | . . . . . Database Lockouts 1 | . 1 . . . Manual 52 | . 30 . 22 . Terminals 51 | . 29 . 22 . Fabricators . | . . . . . Repair Stations 12 | . 2 . 10 . Recycling Units 8 | . 5 . 3 . Scanalyzers 5 | . . . 5 . Garrison Access . | . . . . . Terminal Hacks 11 | . 7 . 4 . Part Schematic 1 | . . . 1 . Robot Analysis 4 | . 3 . 1 . Level Access Points 1 | . 1 . . . Branch Access Points 2 | . 1 . 1 . Terminal Index 2 | . 1 . 1 . Hauler Manifests 1 | . 1 . . . Fabricator Hacks . | . . . . . Repair Station Hacks 6 | . 2 . 4 . Scan Component 3 | . 1 . 2 . Repair 3 | . 1 . 2 . Recycling Unit Hacks 3 | . 2 . 1 . Retrieve Components 3 | . 2 . 1 . Scanalyzer 4 | . . . 4 . Insert Component 2 | . . . 2 . Analyze 2 | . . . 2 . Garrison Access Hacks . | . . . . . Unauthorized Hacks 20 | . 9 . 11 . Terminals 17 | . 7 . 10 . Assimilate 3 | . . . 3 . Botnet 13 | . 7 . 6 . Operators 1 | . . . 1 . Fabricators . | . . . . . Repair Stations . | . . . . . Recycling Units 3 | . 2 . 1 . Tunnel 3 | . 2 . 1 . Scanalyzers . | . . . . . Garrison Access . | . . . . . Data Cores Recovered . | . . . . . Used . | . . . . . Hacking Detections 13 | . 5 . 8 . Full Trace Events 4 | . 2 . 2 . Feedback Events . | . . . . . Feedback Blocked . | . . . . . Robot Schematics Acquired . | . . . . . Robots Built . | . . . . . Authchips . | . . . . . Time . | . . . . . Total Robot Build Rating . | . . . . . Part Schematics Acquired 3 | . . . 3 . Parts Built . | . . . . . Authchips . | . . . . . Time . | . . . . . Total Part Build Rating . | . . . . . Parts Repaired 3 | . 1 . 2 . Time 67 | . 26 . 41 . Parts Recycled . | . . . . . Recycled Matter . | . . . . . Retrieved Matter . | . . . . . Retrieved Components 21 | . 12 . 9 . Parts Scanalyzed 2 | . . . 2 . Part Schematics Acquired 2 | . . . 2 . Parts Damaged . | . . . . . Bothacking | -11 -10 -10 -9 -9 ------------ Run | Scr Mat Min Mat Min Used RIF Installer . | . . . . . Robots Hacked . | . . . . . Non-combat . | . . . . . Combat . | . . . . . Robot Hacks Applied . | . . . . . Relay Couplers Released . | . . . . . Fabnet Peak Effective % . | . . . . . Robots Rewired . | . . . . . Allies Hacked . | . . . . . Hacks Repelled . | . . . . . Allies | -11 -10 -10 -9 -9 -------- Run | Scr Mat Min Mat Min Total Allies 1 | . . . 1 . Largest Group 1 | . . . 1 . Highest-Rated Group 10 | . . . 10 . Highest-Rated Ally 10 | . . . 10 . Total Orders 8 | . . . 8 . STAY 4 | . . . 4 . FOLLOW 4 | . . . 4 . Ally Attacks . | . . . . . Total Damage . | . . . . . Kills . | . . . . . Allies Corrupted . | . . . . . Allies Melted . | . . . . . Intel | -11 -10 -10 -9 -9 ------- Run | Scr Mat Min Mat Min Robot Analysis Total 4 | . 3 . 1 . Derelict Logs Recovered 3 | . . 1 . 2 Drone Launches . | . . . . . Drone Recoveries . | . . . . . Exploration | -11 -10 -10 -9 -9 ------------- Run | Scr Mat Min Mat Min Turns Passed 5109 | 157 1032 700 2681 539 Spaces Moved 3141 | 93 750 528 1561 209 Core 6 | 5 . . 1 . Treads 6 | . . . 6 . Legs . | . . . . . Wheels 3129 | 88 750 528 1554 209 Hover . | . . . . . Flight . | . . . . . Fastest Speed 50 | 50 80 110 110 140 Average Speed 116 | 81 92 110 126 169 Slowest Speed 950 | 150 110 120 950 215 Overloaded Moves . | . . . . . Propulsion Burnouts . | . . . . . Robots Hopped . | . . . . . Cave-ins Triggered . | . . . . . Exploration Rate (%) 65 | 4 97 99 98 27 Regions Visited 4 Branch Regions 2 Pre-discovered Areas 4 | . 2 1 1 . Known Exits Taken 3 | . 1 1 1 . Unknown Exits Taken 1 | 1 . . . . Scrap Searched 1 | . . 1 . . Spaces Dug 29 | . . . 29 . Terrain Destroyed 81 | . . 9 72 . Melee 1 | . . . 1 . Projectile . | . . . . . AOE 80 | . . 9 71 . Terrain Rammed . | . . . . . Walls Destroyed . | . . . . . Machines Disabled . | . . . . . Actions | -11 -10 -10 -9 -9 --------- Run | Scr Mat Min Mat Min Total 4012 | 134 947 603 2016 312 Wait 316 | . 55 21 193 47 Move 3137 | 92 749 527 1560 209 Hop . | . . . . . Pick Up 55 | 9 18 3 25 . Fast Attach 33 | 7 9 . 16 1 Attach 19 | . 4 . 11 4 Detach 7 | . 3 . 3 1 Swap 60 | 1 10 12 34 3 Drop 62 | 2 16 9 35 . Fire 297 | 23 83 31 136 24 Melee 26 | . . . 3 23 Ram . | . . . . . Kick . | . . . . . Crush . | . . . . . Escape Stasis . | . . . . . Rewire . | . . . . . Trap . | . . . . . Miscellaneous . | . . . . . Route ------- -11/Scrapyard -10/Materials (discovered 4 exits: *Mat x3 / *Min) -10/Mines (discovered 2 exits: *Mat x2) -9/Materials (discovered 5 exits: *Mat x3 / *Min x2) -9/Mines (discovered 1 exit: *Mat) History --------- Turn | Location | Event 16 | -11/Scrapyard | Discovered new exit (range 16) 158 | -11/Scrapyard | Entered Materials 256 | -10/Materials | Discovered new exit (range 15) 320 | -10/Materials | Discovered new exit (range 16) 331 | -10/Materials | Build established: Mutant 444 | -10/Materials | Central database locked down 542 | -10/Materials | Identified exit to Mines 563 | -10/Materials | Discovered new exit (range 7) 671 | -10/Materials | Core integrity fell below 50% 784 | -10/Materials | Discovered new exit (range 16) 863 | -10/Materials | Identified exit to Materials 921 | -10/Materials | Repaired Assault Rifle 1190 | -10/Materials | Entered Mines 1226 | -10/Mines | Received a Rocket Launcher from a helpful Derelict 1266 | -10/Mines | Discovered exit to Materials (range 6) 1402 | -10/Mines | Discovered exit to Materials (range 10) 1444 | -10/Mines | Learned location of Storage (-8) 1452 | -10/Mines | Assembled infested the area 1890 | -10/Mines | Entered Materials 1890 | -9/Materials | Evolved 2 slots: Utility x2 2234 | -9/Materials | Discovered new exit (range 10) 2416 | -9/Materials | Identified exit to Mines 2527 | -9/Materials | Discovered new exit (range 6) 2535 | -9/Materials | Identified exit to Materials 2681 | -9/Materials | Build established: Scavenger-Mutant 2793 | -9/Materials | Repaired Hvy. Assault Rifle 2993 | -9/Materials | Repaired Hvy. Ion Engine 3056 | -9/Materials | Discovered exit to Materials (range 17) 3196 | -9/Materials | Discovered exit to Materials (range 10) 3988 | -9/Materials | Build established: Mutant 4047 | -9/Materials | Core integrity fell below 50% 4290 | -9/Materials | First assault squad dispatched 4375 | -9/Materials | Lost 4 parts (1n1u2w) 4571 | -9/Materials | Entered Mines 4571 | -9/Mines | Discovered exit to Materials (range 14) 4607 | -9/Mines | Met a Derelict bent on vengeance 4636 | -9/Mines | Learned Materials machine intel 4685 | -9/Mines | Build established: Scavenger-Mutant 4714 | -9/Mines | Excavation squad dispatched 4714 | -9/Mines | A large section of the Mines collapsed 4747 | -9/Mines | Core integrity fell below 20% 4812 | -9/Mines | Lost 3 parts (2n1u) 5091 | -9/Mines | Build established: Mutant 5110 | -9/Mines | Destroyed by L-31 Rogue with Katana Last Messages --------------- 04987_ System corrupted: Matter fused (-6). 04987_ K-01 Serf collects debris. 04999_ G-34 Mercenary destroyed. 04999_ K-01 Serf collects debris. 05002_ K-01 Serf destroyed. 05009_ Acquired 23 matter. 05013_ Acquired Wheel. 05015_ Extracted 24 matter. 05016_ F0XAMUPIMTJSP=GL4Y&U&=VJOOP/HPCKU3Z7W 05027_ Acquired derelict log, extracted data. Data stored: Factory entrances (x1). 05052_ System corrupted: Heat flow error (+276). 05068_ System corrupted: Matter fused (-7). 05068_ Acquired 7 matter. 05073_ Acquired 6 matter. 05080_ T-07 Excavator destroyed. 05083_ System corrupted: Energy discharge (-56). 05092_ Core Shielding destroyed. 05109_ G-34 Mercenary suffers critical hit (Destroy). 05109_ G-34 Mercenary destroyed. Map ----- +----------------------------------------------------+ | | | | | | | | | | | | | | | | | | | | | | | ?????????????????????????????????#######?????????? | | ????????????????????????????????#########????????? | | #????????????????????????##########"%"###????????? | | ##???????????????????????######### ## ##????????? | | ####?????????????????????##[! ####"##????????? | | ######??????????????????## #######"##%###???????? | | ######?????????????????##=########## ###???????? | | ###################?## ##???##### ###???????? | | ##################?## ######## #"###???????? | | #####%####### #"#"##???????? | | ############### #####"#### ""##???????? | | """ ######## # % % %" ##???????? | | """ ####???????? #######"#### ##???????? | | """ ###??? """ ####### ##### ###???????? | | ##??? """ @l*###### #####???????? | | ##??# #######!##?##########????????? | | ##????????????? #??#######??????????? | | #######?????????? #???????????????????? | | # !% ##???????? #???????????????????? | | ## [ < #???????? #???????????????????? | | ### #### #?????? = #???????????????????? | | #### ###### #????? |% #???????????????????? | | #### ####??? #???? ! #???????????????????? | | ### ####????? #???? ##??????????????????? | | ###??????? ##???### #####??????????????????? | | ##?????????##??????# #####??????????????????? | | !##?????????????????# ???????????????????????? | | # * #????????????????? #??????????????????????? | | ## ????????????###??????????????????????? | | ?## ########???????????###??????????????????????? | | ??####???????????????????????????????????????????? | | ?????????????????????????????????????????????????? | | ?????????????????????????????????????????????????? | | ?????????????????????????????????????????????????? | | ?????????????????????????????????????????????????? | | ?????????????????????????????????????????????????? | | ?????????????????????????????????????????????????? | | ?????????????????????????????????????????????????? | | ?????????????????????????????????????????????????? | +----------------------------------------------------+ Best States ------------- Heat Dissipation 42 Energy Generation 14 Energy Capacity 280 Matter Stores 300 Matter Capacity 300 Sight Range 18 Robot Scan Range 14 Terrain Scan Density 10 Armor Coverage 150 Core Shielding 20 Utility Shielding 33 Evasion (%) 44 Targeting Accuracy 5 Recoil Reduction 1 Item Schematics ----------------- Huge Storage Unit | -9/Materials | Hacked Hacking Suite | -9/Materials | Scanalyzed Datajack | -9/Materials | Scanalyzed Robot Schematics ------------------ None Fabricated ------------ Nothing Alien Tech Used ----------------- None Achievements -------------- None Challenges ------------ None Game ------ Seed RecoilImpactRigger Manual? 0 Play Time 00:46:41 Cumulative 560.0 hours Start 2022.06.04 @ 09:46:43 End 2022.06.04 @ 12:32:28 Sessions 5 Manual Loads 0 Difficulty Rogue Special Mode None Game No. 453 Rogue 453 Adventurer 0 Explorer 0 Win Type - Total 5 Types 4/0/0/1/0/0/0/0/0 Lore% 71 Gallery% 84 Achievement% 66 Wizard Run 0 Options --------- ASCII 0 Keyboard 1 Movement Numpad Keybinds 0 Fullscreen 1 Font 12/Terminus Map View 83x54 Tactical HUD 1 Map Filters NONE Filters NONE Steam 1 RUN: 7b7eccca-9d63-41a5-aacd-1f6d1f70eb5b